lending/lending_fUSD_20250429
["ID","MTS","AMOUNT","RATE_DAILY","PERIOD"]
[359354666,1745949080447,-470.0,0.00030136,2]
[359354667,1745949080456,-537.75,0.00030136,2]
[359354668,1745949080465,-539.83,0.00030136,2]
[359354669,1745949080475,-595.72,0.00030136,2]
[359354670,1745949080484,-470.0,0.00030136,2]
[359354671,1745949080494,-266.89693044,0.00030136,2]
[359354672,1745949080503,-470.0,0.00030136,2]
[359354673,1745949080512,-6080.07,0.00030136,2]
[359354674,1745949080522,-481.77,0.00030136,2]
[359354675,1745949080532,-622.98,0.00030136,2]
[359354676,1745949080542,-520.98,0.00030136,2]
[359354677,1745949080551,-470.0,0.00030136,2]
[359354678,1745949080562,-869.31,0.00030136,2]
[359354679,1745949080571,-704.81,0.00030136,2]
[359354680,1745949080581,-12545.32,0.00030136,2]
[359354681,1745949080591,-492.66,0.00030136,2]
[359354682,1745949080602,-783.52,0.00030136,2]
[359354683,1745949080612,-557.05,0.00030136,2]
[359354684,1745949080622,-470.0,0.00030136,2]
[359354685,1745949080632,-470.0,0.00030136,2]
[359354686,1745949080642,-531.21,0.00030136,2]
[359354687,1745949080652,-488.6,0.00030136,2]
[359354688,1745949080663,-470.0,0.00030136,2]
[359354689,1745949080672,-636.94,0.00030136,2]
[359354690,1745949080682,-1144.88,0.00030136,2]
[359354691,1745949080692,-470.0,0.00030136,2]
[359354692,1745949080703,-624.4,0.00030136,2]
[359354693,1745949080713,-650.35,0.00030136,2]
[359354694,1745949080722,-673.11,0.00030136,2]
[359354695,1745949080731,-470.0,0.00030136,2]
[359354696,1745949080741,-470.0,0.00030136,2]
[359354697,1745949080750,-472.75,0.00030136,2]
[359354698,1745949080761,-470.0,0.00030136,2]
[359354699,1745949080771,-470.0,0.00030136,2]
[359354700,1745949080781,-6481.15,0.00030136,2]
[359354701,1745949080791,-505.43,0.00030136,2]
[359354702,1745949080801,-470.0,0.00030136,2]
[359354703,1745949080810,-470.0,0.00030136,2]
[359354704,1745949080820,-470.0,0.00030136,2]
[359354705,1745949080830,-61295.82,0.00030136,2]
[359354706,1745949080840,-482.94,0.00030136,2]
[359354707,1745949080849,-606.96,0.00030136,2]
[359354708,1745949080859,-470.0,0.00030136,2]
[359354709,1745949080869,-773.47,0.00030136,2]
[359354710,1745949080879,-773.47,0.00030136,2]
[359354711,1745949080889,-773.47,0.00030136,2]
[359354712,1745949080899,-773.47,0.00030136,2]
[359354713,1745949080908,-773.47,0.00030136,2]
[359354714,1745949080918,-773.47,0.00030136,2]
[359354715,1745949080927,-773.47,0.00030136,2]
[359354716,1745949080937,-773.47,0.00030136,2]
[359354717,1745949080947,-773.47,0.00030136,2]
[359354718,1745949080957,-773.47,0.00030136,2]
[359354719,1745949080967,-773.47,0.00030136,2]
[359354720,1745949080976,-470.0,0.00030136,2]
[359354721,1745949080986,-470.0,0.00030136,2]
[359354722,1745949080995,-586.56,0.00030136,2]
[359354723,1745949081009,-1001.6,0.00030136,2]
[359354724,1745949081022,-470.0,0.00030136,2]
[359354725,1745949081032,-470.0,0.00030136,2]
[359354726,1745949081043,-470.0,0.00030136,2]
[359354727,1745949081054,-470.0,0.00030136,2]
[359354728,1745949081064,-7239.44,0.00030136,2]
[359354729,1745949081074,-470.0,0.00030136,2]
[359354730,1745949081084,-610.17,0.00030136,2]
[359354731,1745949081094,-6805.43,0.00030136,2]
[359354732,1745949081104,-2927.0,0.00030136,2]
[359354733,1745949081114,-470.0,0.00030136,2]
[359354734,1745949081125,-200.0,0.00030137,2]
[359354735,1745949081137,-500.0,0.00030137,2]
[359354736,1745949081146,-500.0,0.00030137,2]
[359354737,1745949081156,-200.0,0.00030137,2]
[359354738,1745949081166,-499.06754769,0.00030137,2]
[359354739,1745949081176,-200.0,0.00030137,2]
[359354740,1745949081186,-200.0,0.00030137,2]
[359354741,1745949081196,-500.0,0.00030137,2]
[359354742,1745949081205,-440.4,0.00030137,2]
[359354743,1745949081215,-151.79,0.00030137,2]
[359354744,1745949081225,-200.0,0.00030137,2]
[359354745,1745949081235,-200.0,0.00030137,2]
[359354746,1745949081244,-470.0,0.00030251,2]
[359354747,1745949081254,-231.28369723,0.00030278,2]
[359354748,1745949081263,-51455.88,0.00030325,2]
[359354749,1745949081273,-2082.1308888,0.00030348,9]
[359354750,1745949081283,-323.8715819,0.00030353,2]
[359354751,1745949081293,-57700.384531,0.00030389,2]
[359354752,1745949081303,-293.63353,0.00030389,7]
[359354753,1745949081313,-151.0,0.00030389,7]
[359354754,1745949081322,-500.0,0.00030409,2]
[359354755,1745949081331,-500.0,0.00030409,2]
[359354756,1745949081341,-500.0,0.00030409,2]
[359354757,1745949081350,-236.9,0.00030409,2]
[359354758,1745949081360,-519.67,0.0003041,2]
[359354759,1745949081370,-498.52,0.0003041,2]
[359354760,1745949081381,-470.0,0.0003041,2]
[359354761,1745949081391,-470.0,0.0003041,2]
[359354762,1745949081401,-470.0,0.0003041,2]
[359354763,1745949081410,-470.0,0.0003041,2]
[359354764,1745949081420,-537.97,0.0003041,2]
[359354765,1745949081429,-470.0,0.0003041,2]
[359354766,1745949081439,-470.0,0.0003041,2]
[359354767,1745949081448,-470.0,0.0003041,2]
[359354768,1745949081458,-1113.6,0.0003041,2]
[359354769,1745949081468,-470.0,0.0003041,2]
[359354770,1745949081477,-611.04,0.0003041,2]
[359354771,1745949081487,-470.0,0.0003041,2]
[359354772,1745949081497,-631.2,0.0003041,2]
[359354773,1745949081506,-564.79,0.0003041,2]
[359354774,1745949081516,-668.5,0.0003041,2]
[359354775,1745949081526,-826.62,0.0003041,2]
[359354776,1745949081535,-200.3171861,0.0003041,2]
[359354777,1745949081545,-470.0,0.0003041,2]
[359354778,1745949081555,-470.0,0.0003041,2]
[359354779,1745949081564,-470.0,0.0003041,2]
[359354780,1745949081575,-800.64,0.0003041,2]
[359354781,1745949081584,-470.0,0.0003041,2]
[359354782,1745949081594,-470.0,0.0003041,2]
[359354783,1745949081603,-502.1,0.0003041,2]
[359354784,1745949081613,-470.0,0.0003041,2]
[359354785,1745949081623,-2160.32,0.0003041,2]
[359354786,1745949081633,-470.0,0.0003041,2]
[359354787,1745949081644,-470.0,0.0003041,2]
[359354788,1745949081654,-1312.33,0.0003041,2]
[359354789,1745949081663,-470.0,0.0003041,2]
[359354790,1745949081674,-548.44,0.0003041,2]
[359354791,1745949081683,-2312.86,0.0003041,2]
[359354792,1745949081693,-470.0,0.0003041,2]
[359354793,1745949081703,-470.0,0.0003041,2]
[359354794,1745949081713,-484.25,0.0003041,2]
[359354795,1745949081722,-470.0,0.0003041,2]
[359354796,1745949081732,-470.0,0.0003041,2]
[359354797,1745949081741,-470.0,0.0003041,2]
[359354798,1745949081751,-470.0,0.0003041,2]
[359354799,1745949081761,-470.0,0.0003041,2]
[359354800,1745949081771,-5959.741954,0.0003041,2]
[359354801,1745949081780,-470.0,0.0003041,2]
[359354802,1745949081790,-470.0,0.0003041,2]
[359354803,1745949081800,-470.0,0.0003041,2]
[359354804,1745949081809,-470.0,0.0003041,2]
[359354805,1745949081819,-470.0,0.0003041,2]
[359354806,1745949081828,-470.0,0.0003041,2]
[359354807,1745949081839,-659.334822,0.0003041,2]
[359354808,1745949081849,-657.74,0.0003041,2]
[359354809,1745949081859,-486.33,0.0003041,2]
[359354810,1745949081871,-470.0,0.0003041,2]
[359354811,1745949081881,-470.0,0.0003041,2]
[359354812,1745949081890,-470.0,0.0003041,2]
[359354813,1745949081900,-437.515976,0.0003041,2]
[359354814,1745949081909,-470.0,0.0003041,2]
[359354815,1745949081919,-542.45,0.0003041,2]
[359354816,1745949081929,-656.69,0.0003041,2]
[359354817,1745949081939,-552.91,0.0003041,2]
[359354818,1745949081948,-470.0,0.0003041,2]
[359354819,1745949081958,-470.0,0.0003041,2]
[359354820,1745949081969,-610.66,0.0003041,2]
[359354821,1745949081979,-470.0,0.0003041,2]
[359354822,1745949081988,-558.47,0.0003041,2]
[359354823,1745949081998,-471.31,0.0003041,2]
[359354824,1745949082009,-1049.74,0.0003041,2]
[359354825,1745949082019,-566.36,0.0003041,2]
[359354826,1745949082029,-470.0,0.0003041,2]
[359354827,1745949082041,-395.84,0.0003041,2]
[359354828,1745949082052,-534.78,0.0003041,2]
[359354829,1745949082062,-563.33,0.0003041,2]
[359354830,1745949082071,-372.483872,0.0003041,2]
[359354831,1745949082082,-470.0,0.0003041,2]
[359354832,1745949082092,-470.0,0.0003041,2]
[359354833,1745949082101,-470.0,0.0003041,2]
[359354834,1745949082111,-557.82,0.0003041,2]
[359354835,1745949082121,-1537.22,0.0003041,2]
[359354836,1745949082131,-496.59,0.0003041,2]
[359354837,1745949082140,-151.0,0.0003041,7]
[359354838,1745949082150,-652.05,0.0003041,2]
[359354839,1745949082160,-470.0,0.0003041,2]
[359354840,1745949082170,-1146.41,0.0003041,2]
[359354841,1745949082180,-579.71,0.0003041,2]
[359354842,1745949082190,-470.0,0.0003041,2]
[359354843,1745949082200,-470.0,0.0003041,2]
[359354844,1745949082210,-470.0,0.0003041,2]
[359354845,1745949082221,-704.42,0.0003041,2]
[359354846,1745949082231,-470.0,0.0003041,2]
[359354847,1745949082240,-470.0,0.0003041,2]
[359354848,1745949082250,-470.0,0.0003041,2]
[359354849,1745949082260,-470.0,0.0003041,2]
[359354850,1745949082269,-470.0,0.0003041,2]
[359354851,1745949082279,-625.71,0.0003041,2]
[359354852,1745949082289,-2279.31,0.0003041,2]
[359354853,1745949082299,-470.0,0.0003041,2]
[359354854,1745949082309,-470.0,0.0003041,2]
[359354855,1745949082319,-470.0,0.0003041,2]
[359354856,1745949082329,-544.48,0.0003041,2]
[359354857,1745949082339,-904.77,0.0003041,2]
[359354858,1745949082349,-1788.53,0.0003041,2]
[359354859,1745949082359,-510.11,0.0003041,2]
[359354860,1745949082369,-3823.23,0.0003041,2]
[359354861,1745949082379,-470.0,0.0003041,2]
[359354862,1745949082388,-2052.75,0.0003041,2]
[359354863,1745949082398,-470.0,0.0003041,2]
[359354864,1745949082408,-685.59,0.0003041,2]
[359354865,1745949082418,-470.0,0.0003041,2]
[359354866,1745949082428,-539.63,0.0003041,2]
[359354867,1745949082439,-2047.07,0.0003041,2]
[359354868,1745949082451,-470.0,0.0003041,2]
[359354869,1745949082462,-151.0,0.0003041,7]
[359354870,1745949082472,-1581.86,0.0003041,2]
[359354871,1745949082482,-470.0,0.0003041,2]
[359354872,1745949082492,-470.0,0.0003041,2]
[359354873,1745949082502,-703.7,0.0003041,2]
[359354874,1745949082511,-470.0,0.0003041,2]
[359354875,1745949082521,-503.82188069,0.0003041,2]
[359354876,1745949082530,-2163.53,0.0003041,2]
[359354877,1745949082538,-515.86,0.0003041,2]
[359354878,1745949082559,-549.1057714,0.0003041,2]
[359354879,1745949082569,-1020.49,0.0003041,2]
[359354880,1745949082579,-571.16238053,0.0003041,2]
[359354881,1745949082590,-716.59,0.0003041,2]
[359354882,1745949082599,-470.0,0.0003041,2]
[359354883,1745949082609,-470.0,0.0003041,2]
[359354884,1745949082619,-490.92,0.0003041,2]
[359354885,1745949082631,-470.0,0.0003041,2]
[359354886,1745949082641,-470.0,0.0003041,2]
[359354887,1745949082651,-2329.69,0.0003041,2]
[359354888,1745949082661,-470.0,0.0003041,2]
[359354889,1745949082671,-765.88,0.0003041,2]
[359354890,1745949082681,-470.0,0.0003041,2]
[359354891,1745949082691,-470.0,0.0003041,2]
[359354892,1745949082701,-470.0,0.0003041,2]
[359354893,1745949082711,-1203.42,0.0003041,2]
[359354894,1745949082721,-568.19,0.0003041,2]
[359354895,1745949082730,-645.19,0.0003041,2]
[359354896,1745949082740,-970.99,0.0003041,2]
[359354897,1745949082751,-901.28,0.0003041,2]
[359354898,1745949082762,-470.0,0.0003041,2]
[359354899,1745949082773,-701.64,0.0003041,2]
[359354900,1745949082783,-470.0,0.0003041,2]
[359354901,1745949082796,-1092.53,0.0003041,2]
[359354902,1745949082807,-470.0,0.0003041,2]
[359354903,1745949082817,-470.0,0.0003041,2]
[359354904,1745949082827,-470.0,0.0003041,2]
[359354905,1745949082838,-470.0,0.0003041,2]
[359354906,1745949082848,-903.38,0.0003041,2]
[359354907,1745949082858,-1736.45,0.0003041,2]
[359354908,1745949082868,-470.0,0.0003041,2]
[359354909,1745949082879,-1436.64,0.0003041,2]
[359354910,1745949082891,-559.81,0.0003041,2]
[359354911,1745949082902,-2108.64,0.0003041,2]
[359354912,1745949082914,-960.7,0.0003041,2]
[359354913,1745949082925,-2353.36,0.0003041,2]
[359354914,1745949082935,-470.0,0.0003041,2]
[359354915,1745949082947,-745.59,0.0003041,2]
[359354916,1745949082958,-545.5,0.0003041,2]
[359354917,1745949082967,-549.47,0.0003041,2]
[359354918,1745949082978,-470.0,0.0003041,2]
[359354919,1745949082989,-586.45,0.0003041,2]
[359354920,1745949082999,-470.0,0.0003041,2]
[359354921,1745949083010,-770.83,0.0003041,2]
[359354922,1745949083019,-470.0,0.0003041,2]
[359354923,1745949083029,-797.04,0.0003041,2]
[359354924,1745949083039,-543.81,0.0003041,2]
[359354925,1745949083052,-885.12,0.0003041,2]
[359354926,1745949083062,-470.0,0.0003041,2]
[359354927,1745949083072,-562.35,0.0003041,2]
[359354928,1745949083082,-151.0,0.0003041,7]
[359354929,1745949083092,-476.24,0.0003041,2]
[359354930,1745949083102,-880.52,0.0003041,2]
[359354931,1745949083111,-915.71,0.0003041,2]
[359354932,1745949083121,-470.0,0.0003041,2]
[359354933,1745949083133,-820.44,0.0003041,2]
[359354934,1745949083143,-470.0,0.0003041,2]
[359354935,1745949083153,-470.0,0.0003041,2]
[359354936,1745949083163,-470.0,0.0003041,2]
[359354937,1745949083173,-625.99,0.0003041,2]
[359354938,1745949083183,-568.66,0.0003041,2]
[359354939,1745949083194,-902.33,0.0003041,2]
[359354940,1745949083204,-486.67,0.0003041,2]
[359354941,1745949083214,-847.38,0.0003041,2]
[359354942,1745949083224,-682.29,0.0003041,2]
[359354943,1745949083234,-3039.36,0.0003041,2]
[359354944,1745949083245,-474.23,0.0003041,2]
[359354945,1745949083256,-470.0,0.0003041,2]
[359354946,1745949083266,-470.0,0.0003041,2]
[359354947,1745949083276,-613.1,0.0003041,2]
[359354948,1745949083287,-288.87798938,0.0003041,2]
[359354949,1745949083297,-683.49,0.0003041,2]
[359354950,1745949083308,-470.0,0.0003041,2]
[359354951,1745949083319,-537.75,0.0003041,2]
[359354952,1745949083481,-539.83,0.0003041,2]
[359354953,1745949083519,-595.72,0.0003041,2]
[359354954,1745949083533,-378.41,0.0003041,2]
[359354955,1745949083543,-470.0,0.0003041,2]
[359354956,1745949083562,-6080.07,0.0003041,2]
[359354957,1745949083572,-481.77,0.0003041,2]
[359354958,1745949083582,-622.98,0.0003041,2]
[359354959,1745949083591,-520.98,0.0003041,2]
[359354960,1745949083601,-470.0,0.0003041,2]
[359354961,1745949083611,-869.31,0.0003041,2]
[359354962,1745949083621,-704.81,0.0003041,2]
[359354963,1745949083634,-12545.32,0.0003041,2]
[359354964,1745949083643,-492.66,0.0003041,2]
[359354965,1745949083653,-783.52,0.0003041,2]
[359354966,1745949083663,-557.05,0.0003041,2]
[359354967,1745949083672,-470.0,0.0003041,2]
[359354968,1745949083682,-470.0,0.0003041,2]
[359354969,1745949083691,-531.21,0.0003041,2]
[359354970,1745949083702,-488.6,0.0003041,2]
[359354971,1745949083711,-470.0,0.0003041,2]
[359354972,1745949083722,-636.94,0.0003041,2]
[359354973,1745949083732,-1144.88,0.0003041,2]
[359354974,1745949083742,-470.0,0.0003041,2]
[359354975,1745949083752,-624.4,0.0003041,2]
[359354976,1745949083763,-650.35,0.0003041,2]
[359354977,1745949083773,-673.11,0.0003041,2]
[359354978,1745949083782,-470.0,0.0003041,2]
[359354979,1745949083792,-470.0,0.0003041,2]
[359354980,1745949083802,-472.75,0.0003041,2]
[359354981,1745949083812,-470.0,0.0003041,2]
[359354982,1745949083822,-470.0,0.0003041,2]
[359354983,1745949083832,-6481.15,0.0003041,2]
[359354984,1745949083841,-505.43,0.0003041,2]
[359354985,1745949083851,-470.0,0.0003041,2]
[359354986,1745949083860,-470.0,0.0003041,2]
[359354987,1745949083870,-470.0,0.0003041,2]
[359354988,1745949083880,-61295.82,0.0003041,2]
[359354989,1745949083890,-482.94,0.0003041,2]
[359354990,1745949083900,-606.96,0.0003041,2]
[359354991,1745949083910,-470.0,0.0003041,2]
[359354992,1745949083919,-470.0,0.0003041,2]
[359354993,1745949083929,-470.0,0.0003041,2]
[359354994,1745949083939,-773.47,0.0003041,2]
[359354995,1745949083948,-586.56,0.0003041,2]
[359354996,1745949083957,-1001.6,0.0003041,2]
[359354997,1745949083968,-470.0,0.0003041,2]
[359354998,1745949083977,-470.0,0.0003041,2]
[359354999,1745949083987,-470.0,0.0003041,2]
[359355000,1745949083997,-470.0,0.0003041,2]
[359355001,1745949084007,-7239.44,0.0003041,2]
[359355002,1745949084017,-610.17,0.0003041,2]
[359355003,1745949084027,-470.0,0.0003041,2]
[359355004,1745949084037,-6805.43,0.0003041,2]
[359355005,1745949084050,-2927.0,0.0003041,2]
[359355006,1745949084060,-500.0,0.00030411,2]
[359355007,1745949084070,-500.0,0.00030411,2]
[359355008,1745949084080,-500.0,0.00030411,2]
[359355009,1745949084090,-200.0,0.00030438,2]
[359355010,1745949084100,-200.0,0.00030438,2]
[359355011,1745949084110,-587.0,0.00030446,2]
[359355012,1745949084127,-470.0,0.00030525,2]
[359355013,1745949084137,-333.59446545,0.0003055,2]
[359355014,1745949084147,-152.0,0.00030573,4]
[359355015,1745949084156,-151.0,0.00030574,2]
[359355016,1745949084167,-51455.88,0.00030599,2]
[359355017,1745949084176,-151.0,0.00030663,7]
[359355018,1745949084186,-1058.4190151,0.00030663,2]
[359355019,1745949084196,-5985.6804245,0.00030663,2]
[359355020,1745949084206,-464.58445906,0.00030683,2]
[359355021,1745949084216,-519.67,0.00030684,2]
[359355022,1745949084225,-498.52,0.00030684,2]
[359355023,1745949084235,-470.0,0.00030684,2]
[359355024,1745949084245,-470.0,0.00030684,2]
[359355025,1745949084255,-470.0,0.00030684,2]
[359355026,1745949084264,-480.0,0.00030684,2]
[359355027,1745949084274,-537.97,0.00030684,2]
[359355028,1745949084283,-470.0,0.00030684,2]
[359355029,1745949084293,-470.0,0.00030684,2]
[359355030,1745949084303,-470.0,0.00030684,2]
[359355031,1745949084313,-1113.6,0.00030684,2]
[359355032,1745949084324,-470.0,0.00030684,2]
[359355033,1745949084334,-611.04,0.00030684,2]
[359355034,1745949084344,-470.0,0.00030684,2]
[359355035,1745949084353,-631.2,0.00030684,2]
[359355036,1745949084363,-564.79,0.00030684,2]
[359355037,1745949084372,-668.5,0.00030684,2]
[359355038,1745949084384,-826.62,0.00030684,2]
[359355039,1745949084395,-470.0,0.00030684,2]
[359355040,1745949084405,-470.0,0.00030684,2]
[359355041,1745949084415,-569.94737704,0.00030684,2]
[359355042,1745949084425,-800.64,0.00030684,2]
[359355043,1745949084434,-470.0,0.00030684,2]
[359355044,1745949084444,-470.0,0.00030684,2]
[359355045,1745949084455,-502.1,0.00030684,2]
[359355046,1745949084466,-470.60949778,0.00030684,2]
[359355047,1745949084475,-2160.32,0.00030684,2]
[359355048,1745949084485,-470.0,0.00030684,2]
[359355049,1745949084495,-470.0,0.00030684,2]
[359355050,1745949084505,-1312.33,0.00030684,2]
[359355051,1745949084515,-466.8342755,0.00030684,2]
[359355052,1745949084524,-548.44,0.00030684,2]
[359355053,1745949084534,-2312.86,0.00030684,2]
[359355054,1745949084560,-470.0,0.00030684,2]
[359355055,1745949084570,-470.0,0.00030684,2]
[359355056,1745949084580,-484.25,0.00030684,2]
[359355057,1745949084590,-470.0,0.00030684,2]
[359355058,1745949084600,-470.0,0.00030684,2]
[359355059,1745949084611,-470.0,0.00030684,2]
[359355060,1745949084621,-470.0,0.00030684,2]
[359355061,1745949084632,-470.0,0.00030684,2]
[359355062,1745949084643,-5959.741954,0.00030684,2]
[359355063,1745949084652,-470.0,0.00030684,2]
[359355064,1745949084662,-470.0,0.00030684,2]
[359355065,1745949084672,-470.0,0.00030684,2]
[359355066,1745949084682,-470.0,0.00030684,2]
[359355067,1745949084691,-470.0,0.00030684,2]
[359355068,1745949084702,-470.0,0.00030684,2]
[359355069,1745949084712,-659.334822,0.00030684,2]
[359355070,1745949084723,-657.74,0.00030684,2]
[359355071,1745949084733,-486.33,0.00030684,2]
[359355072,1745949084744,-470.0,0.00030684,2]
[359355073,1745949084754,-470.0,0.00030684,2]
[359355074,1745949084764,-470.0,0.00030684,2]
[359355075,1745949084774,-437.515976,0.00030684,2]
[359355076,1745949084784,-470.0,0.00030684,2]
[359355077,1745949084796,-542.45,0.00030684,2]
[359355078,1745949084807,-656.69,0.00030684,2]
[359355079,1745949084817,-552.91,0.00030684,2]
[359355080,1745949084827,-470.0,0.00030684,2]
[359355081,1745949084837,-594.01515488,0.00030684,2]
[359355082,1745949084848,-610.66,0.00030684,2]
[359355083,1745949084859,-470.0,0.00030684,2]
[359355084,1745949084868,-558.47,0.00030684,2]
[359355085,1745949084879,-471.31,0.00030684,2]
[359355086,1745949084888,-164.068496,0.00030684,2]
[359355087,1745949084898,-1049.74,0.00030684,2]
[359355088,1745949084909,-566.36,0.00030684,2]
[359355089,1745949084919,-470.0,0.00030684,2]
[359355090,1745949084928,-534.78,0.00030684,2]
[359355091,1745949084938,-563.33,0.00030684,2]
[359355092,1745949084948,-372.483872,0.00030684,2]
[359355093,1745949084958,-470.0,0.00030684,2]
[359355094,1745949084967,-470.0,0.00030684,2]
[359355095,1745949084977,-557.82,0.00030684,2]
[359355096,1745949084987,-1537.22,0.00030684,2]
[359355097,1745949084996,-496.59,0.00030684,2]
[359355098,1745949085006,-652.05,0.00030684,2]
[359355099,1745949085015,-470.0,0.00030684,2]
[359355100,1745949085025,-1146.41,0.00030684,2]
[359355101,1745949085034,-579.71,0.00030684,2]
[359355102,1745949085047,-470.0,0.00030684,2]
[359355103,1745949085057,-470.0,0.00030684,2]
[359355104,1745949085066,-470.0,0.00030684,2]
[359355105,1745949085075,-704.42,0.00030684,2]
[359355106,1745949085085,-207.98650215,0.00030684,2]
[359355107,1745949085095,-470.0,0.00030684,2]
[359355108,1745949085104,-470.0,0.00030684,2]
[359355109,1745949085113,-470.0,0.00030684,2]
[359355110,1745949085123,-470.0,0.00030684,2]
[359355111,1745949085132,-625.71,0.00030684,2]
[359355112,1745949085142,-2279.31,0.00030684,2]
[359355113,1745949085153,-470.0,0.00030684,2]
[359355114,1745949085162,-285.67917135,0.00030684,2]
[359355115,1745949085171,-470.0,0.00030684,2]
[359355116,1745949085181,-544.48,0.00030684,2]
[359355117,1745949085190,-904.77,0.00030684,2]
[359355118,1745949085200,-1788.53,0.00030684,2]
[359355119,1745949085210,-510.11,0.00030684,2]
[359355120,1745949085224,-3823.23,0.00030684,2]
[359355121,1745949085234,-470.0,0.00030684,2]
[359355122,1745949085244,-2052.75,0.00030684,2]
[359355123,1745949085253,-685.59,0.00030684,2]
[359355124,1745949085263,-470.0,0.00030684,2]
[359355125,1745949085272,-470.0,0.00030684,2]
[359355126,1745949085282,-539.63,0.00030684,2]
[359355127,1745949085292,-2047.07,0.00030684,2]
[359355128,1745949085302,-470.0,0.00030684,2]
[359355129,1745949085311,-151.0,0.00030684,7]
[359355130,1745949085322,-1581.86,0.00030684,2]
[359355131,1745949085332,-470.0,0.00030684,2]
[359355132,1745949085342,-470.0,0.00030684,2]
[359355133,1745949085353,-703.7,0.00030684,2]
[359355134,1745949085364,-470.0,0.00030684,2]
[359355135,1745949085374,-2163.53,0.00030684,2]
[359355136,1745949085384,-515.86,0.00030684,2]
[359355137,1745949085394,-1020.49,0.00030684,2]
[359355138,1745949085403,-716.59,0.00030684,2]
[359355139,1745949085417,-169.75002394,0.00030684,2]
[359355140,1745949085427,-470.0,0.00030684,2]
[359355141,1745949085437,-490.92,0.00030684,2]
[359355142,1745949085447,-470.0,0.00030684,2]
[359355143,1745949085457,-302.36308698,0.00030684,2]
[359355144,1745949085468,-2329.69,0.00030684,2]
[359355145,1745949085478,-470.0,0.00030684,2]
[359355146,1745949085488,-765.88,0.00030684,2]
[359355147,1745949085498,-470.0,0.00030684,2]
[359355148,1745949085508,-470.0,0.00030684,2]
[359355149,1745949085518,-470.0,0.00030684,2]
[359355150,1745949085527,-1203.42,0.00030684,2]
[359355151,1745949085538,-568.19,0.00030684,2]
[359355152,1745949085548,-645.19,0.00030684,2]
[359355153,1745949085558,-970.99,0.00030684,2]
[359355154,1745949085568,-901.28,0.00030684,2]
[359355155,1745949085578,-470.0,0.00030684,2]
[359355156,1745949085588,-701.64,0.00030684,2]
[359355157,1745949085598,-470.0,0.00030684,2]
[359355158,1745949085609,-1092.53,0.00030684,2]
[359355159,1745949085619,-511.97781172,0.00030684,2]
[359355160,1745949085630,-470.0,0.00030684,2]
[359355161,1745949085640,-470.0,0.00030684,2]
[359355162,1745949085650,-470.0,0.00030684,2]
[359355163,1745949085660,-903.38,0.00030684,2]
[359355164,1745949085670,-1736.45,0.00030684,2]
[359355165,1745949085679,-470.0,0.00030684,2]